[Event "Slovakian-ch Youth 2022"]
[Site "Lubovna"]
[Date "2022.05.22"]
[Round "2.15"]
[White "Compel, Daniel"]
[Black "Rak, Martin"]
[Result "1-0"]
[ECO "E17"]
[WhiteElo "2106"]
[BlackElo "1849"]
[Annotator "TA"]
[PlyCount "91"]
[EventDate "2022.05.22"]
[EventCountry "SVK"]
[SourceTitle "playchess.com"]
[Source "ChessBase"]
[SourceQuality "1"]
[TimeControl "40/5400+30:1800+30"]

{[%evp 13,91,-4,-4,-13,-14,-17,44,50,50,41,120,50,53,26,147,110,159,155,185,52,55,39,52,56,75,49,102,93,257,160,273,276,285,272,284,282,318,280,549,558,641,573,684,663,783,772,740,703,655,543,543,540,512,439,624,645,624,562,679,453,453,453,453,391,555,391,552,520,493,486,555,541,825,773,812,812,944,904,838,822]} 1. d4 {[%emt 0:00:03]} Nf6 {[%emt 0:01:16]} 2. c4 {[%emt 0:00:06]} e6 {[%emt 0:00:16]} 3. Nf3 {[%emt 0:00:05]} b6 {[%emt 0:00:42]} 4. g3 {[%emt 0:00:10]} Bb7 {[%emt 0:00:37]} 5. Bg2 {[%emt 0:00:05]} Be7 {[%emt 0:00:47]} 6. Nc3 {[%emt 0:00:23]} O-O {[%emt 0:00:42]} 7. d5 {[%emt 0:00:16] 7.Qc2 is a critical line.} Bb4 {[%emt 0:00:45]} 8. O-O {[%emt 0:05:08] E17: Queen's Indian: 4 g3 Bb7 5 Bg2 Be7.} Bxc3 {[%emt 0:01:51]} 9. bxc3 {[%emt 0:00:11]} exd5 {[%emt 0:08:29]} (9... d6 $11) 10. Nh4 $14 {[%emt 0:00:08][%cal Rc4d5,Bf3h4,Bh4f5,Bf5d4][%mdl 32] [#] White is slightly better.} Ne4 $146 {[%emt 0:01:32] Threatens to win with ...Re8.} ({Predecessor:} 10... Re8 11. cxd5 Ba6 12. Re1 d6 13. e4 Nfd7 14. f4 Nc5 15. Qd4 Nbd7 16. Ba3 Rb8 {1-0 (31) Gyimesi,Z (2618)-Nemeth,M (2375) Hungary 2005}) 11. cxd5 {[%emt 0:01:05]} Nxc3 {[%emt 0:04:38] [#]} ({Black should play} 11... Re8 $14) 12. Qd2 {[%emt 0:05:55]} (12. Qc2 $1 $16 {[%cal Rc2c3]} Nxd5 13. Qd2) 12... Na4 {[%emt 0:08:33]} 13. Qd4 {[%emt 0:00:58][%mdl 1024] White has compensation.} b5 {[%emt 0:03:37]} (13... Nc5 $1 $11) 14. Rb1 {[%emt 0:15:53]} a6 {[%emt 0:04:17]} (14... d6 $142) 15. Nf5 $16 {[%emt 0:04:43][%csl Gf5][%cal Rd4g7]} f6 {[%emt 0:13:33] [#]} 16. Ba3 $40 {[%emt 0:05:52][%mdl 128] White is up to no good.} (16. Bh6 $1 $18 {[%mdl 512]} Rf7 17. Qg4) 16... d6 $1 $14 {[%emt 0:02:34]} 17. Qg4 {[%emt 0:07:22][%csl Gf5][%cal Rg4g7]} g6 {[%emt 0:06:38] ...Bc8 is the strong threat.} 18. Nd4 $1 {[%emt 0:00:25]} Bc8 {[%emt 0:06:46]} 19. Qh4 {[%emt 0:05:44] 0x0.0024da334432dp-1022s more active pieces.} f5 {[%emt 0:06:18]} (19... Nc3 20. Rb3 Na4 21. Bb4 $16) ({Better is} 19... Ra7 $14) 20. Qf4 $16 {[%emt 0:02:03]} Nb6 $2 {[%emt 0:04:18] Loses the game.} (20... Qf6 $16) 21. Bb2 {[%emt 0:00:48] Hoping for Ne6.} Nc4 {[%emt 0:01:14]} (21... Qe7 $16 22. Ne6 c5) 22. Ba1 $18 {[%emt 0:00:32] A strong pair of Bishops.} Qe7 {[%emt 0:04:02]} 23. a4 {[%emt 0:01:23]} (23. Ne6 $6 c5 24. Nxf8 Qxf8 $18) 23... Nd7 {[%emt 0:03:40]} 24. Ne6 {[%emt 0:11:27]} ({Much less strong is} 24. axb5 $6 Nde5 25. Nc6 Nxc6 $18) 24... Rf7 {[%emt 0:00:45]} 25. axb5 {[%emt 0:00:59]} ({Less strong is} 25. Qd4 Nf6 $16) 25... Na3 {[%emt 0:00:56]} (25... Nde5 {was called for.} 26. bxa6 c5 27. Nxc5 g5) 26. Nxc7 {[%emt 0:04:24]} ({Weaker is} 26. Qd4 Nf6 $16) 26... Ra7 {[%emt 0:02:49] [#]} 27. Qd4 $1 {[%emt 0:06:44][%csl Ga1][%cal Rd4h8]} Ne5 {[%emt 0:00:12]} (27... Nf6 28. Qxa7) 28. Qxa7 {[%emt 0:03:22]} Qxc7 {[%emt 0:01:13]} 29. Qxc7 {[%emt 0:00:17]} Rxc7 {[%emt 0:00:02]} 30. Bxe5 {[%emt 0:02:18]} Nxb1 {[%emt 0:00:51]} 31. Rxb1 {[%emt 0:01:17]} dxe5 {[%emt 0:00:32][%mdl 4096] Endgame KRB-KRB} 32. d6 {[%emt 0:00:20]} Rd7 {[%emt 0:00:39]} 33. b6 {[%emt 0:00:47] Black must now prevent Bd5+.} e4 {[%emt 0:01:38]} (33... Rxd6 $142 34. b7 Bxb7 35. Bxb7 Kg7) 34. Rc1 {[%emt 0:01:51]} Rd8 {[%emt 0:00:41]} 35. Rc7 {[%emt 0:00:32]} a5 {[%emt 0:01:05]} 36. b7 {[%emt 0:00:45]} Bxb7 {[%emt 0:00:12]} 37. Rxb7 {[%emt 0:00:09]} Rxd6 {[%emt 0:00:01] KRB-KR} 38. Ra7 {[%emt 0:00:09]} Rd1+ {[%emt 0:00:17]} 39. Bf1 {[%emt 0:00:07]} Ra1 {[%emt 0:00:38]} (39... Rd5 $142 40. e3 Kh8) 40. Kg2 {[%emt 0:00:10] White is clearly winning.} h6 {[%emt 0:02:25]} 41. e3 {[%emt 0:31:06]} Ra4 {[%emt 0:33:41]} 42. Bb5 {[%emt 0:00:23]} Ra3 {[%emt 0:00:24]} 43. Bc4+ {[%emt 0:00:08]} Kf8 {[%emt 0:02:42]} 44. Bf7 {[%emt 0:02:00]} Kg7 {[%emt 0:00:15]} 45. Be8+ {[%emt 0:00:06]} Kf6 {[%emt 0:00:34]} 46. Ra6+ {[%emt 0:00:06] Weighted Error Value: White=0.32/Black=0.58} 1-0

[Event "Slovakian-ch Youth 2022"]
[Site "Lubovna"]
[Date "2022.05.22"]
[Round "2.15"]
[White "Kluska, Lukas"]
[Black "Rybovic, Alex"]
[Result "1-0"]
[ECO "A21"]
[WhiteElo "1215"]
[BlackElo "1000"]
[Annotator "NA COMBH"]
[PlyCount "81"]
[EventDate "2022.05.22"]
[EventCountry "SVK"]
[SourceTitle "playchess.com"]
[Source "ChessBase"]
[SourceQuality "1"]
[TimeControl "40/5400+30:1800+30"]

1. c4 {[%emt 0:00:11]} e5 {[%emt 0:00:44]} 2. Nc3 {[%emt 0:00:09]} Bc5 {[%emt 0:00:19]} 3. Nf3 Nf6 {[%emt 0:00:56]} 4. Nxe5 {[%emt 0:00:55]} Qe7 {[%emt 0:01:11]} 5. d4 {[%emt 0:01:39]} Bb4 {[%emt 0:00:41]} 6. Bd2 {[%emt 0:00:32]} d6 {[%emt 0:00:26]} 7. Nf3 {[%emt 0:00:49]} Bg4 {[%emt 0:00:41]} 8. Qa4+ {[%emt 0:00:24]} c6 {[%emt 0:00:39]} 9. Qxb4 {[%emt 0:00:07]} Bxf3 {[%emt 0:00:44]} 10. gxf3 {[%emt 0:00:14]} b6 {[%emt 0:01:09]} 11. e3 {[%emt 0:00:27]} c5 {[%emt 0:00:45]} 12. Qa4+ {[%emt 0:02:13]} Qd7 {[%emt 0:02:13]} 13. Qxd7+ {[%emt 0:00:56]} Nbxd7 {[%emt 0:00:13]} 14. Bg2 {[%emt 0:00:14]} cxd4 {[%emt 0:01:44]} 15. exd4 {[%emt 0:00:27]} O-O {[%emt 0:00:39]} 16. f4 {[%emt 0:00:09]} Rae8+ {[%emt 0:00:23]} 17. Be3 {[%emt 0:00:18]} h6 {[%emt 0:02:52]} 18. Bc6 {[%emt 0:00:21]} a5 {[%emt 0:02:00]} 19. O-O-O {[%emt 0:00:30]} Rc8 {[%emt 0:00:29]} 20. Bb5 {[%emt 0:00:21]} Ng4 {[%emt 0:01:13]} 21. Bxd7 {[%emt 0:02:57]} Rxc4 {[%emt 0:01:45]} 22. Bxg4 {[%emt 0:00:13]} b5 {[%emt 0:00:24]} 23. Be2 {[%emt 0:00:29]} Rc7 {[%emt 0:00:27]} 24. Bxb5 {[%emt 0:00:10]} d5 {[%emt 0:02:15]} 25. Rhg1 {[%emt 0:00:21]} Rb8 {[%emt 0:04:20]} 26. Bd3 {[%emt 0:00:35]} Rcb7 {[%emt 0:01:37]} 27. b3 {[%emt 0:00:42]} g6 {[%emt 0:05:35]} 28. f5 {[%emt 0:00:15]} Rc7 {[%emt 0:05:16]} 29. Kb2 {[%emt 0:00:14]} Kh7 {[%emt 0:02:56]} 30. fxg6+ {[%emt 0:00:12]} fxg6 {[%emt 0:00:42]} 31. Bxg6+ {[%emt 0:00:14]} Kh8 {[%emt 0:02:00]} 32. Bf4 {[%emt 0:00:41]} Rxc3 {[%emt 0:00:52]} 33. Kxc3 {[%emt 0:00:31]} Rc8+ {[%emt 0:02:05]} 34. Kb2 {[%emt 0:00:16]} Rf8 {[%emt 0:00:48]} 35. Be5+ {[%emt 0:00:04]} Kg8 {[%emt 0:01:10]} 36. Bf5+ {[%emt 0:00:29]} Kf7 {[%emt 0:01:28]} 37. Rg7+ {[%emt 0:00:11]} Ke8 {[%emt 0:00:37]} 38. Bd7+ {[%emt 0:00:20]} Kd8 {[%emt 0:00:30]} 39. Rc1 {[%emt 0:00:04]} Rxf2+ {[%emt 0:00:36]} 40. Ka3 {[%emt 0:00:04]} Rxh2 {[%emt 0:01:08]} 41. Bc7# {[%emt 0:30:08]} 1-0

[Event "Slovakian-ch Youth 2022"]
[Site "Lubovna"]
[Date "2022.05.22"]
[Round "2.16"]
[White "Janik, Marek Tobias"]
[Black "Salgovic, Simon"]
[Result "1/2-1/2"]
[ECO "A24"]
[WhiteElo "1840"]
[BlackElo "2091"]
[Annotator "TA"]
[PlyCount "84"]
[EventDate "2022.05.22"]
[EventCountry "SVK"]
[SourceTitle "playchess.com"]
[Source "ChessBase"]
[SourceQuality "1"]
[TimeControl "40/5400+30:1800+30"]

{[%evp 14,84,24,-7,0,-8,-11,0,10,0,0,0,0,-7,53,-8,76,84,195,139,149,123,107,112,148,95,107,107,131,42,33,0,0,0,0,0,0,0,0,-44,-29,-32,0,-18,-17,-144,-29,-123,-29,-28,-29,-29,-16,-12,0,0,567,550,533,520,492,0,0,0,0,9,54,54,54,45,80,8,200]} 1. c4 {[%emt 0:00:03]} Nf6 {[%emt 0:01:00]} 2. Nc3 {[%emt 0:00:08]} g6 {[%emt 0:00:22]} 3. g3 {[%emt 0:00:05]} Bg7 {[%emt 0:00:04]} 4. Bg2 {[%emt 0:00:05]} O-O {[%emt 0:00:35]} 5. e3 {[%emt 0:00:30]} d6 {[%emt 0:00:43]} 6. Nge2 {[%emt 0:00:07]} e5 {[%emt 0:00:30]} 7. O-O {[%emt 0:00:40]} c6 {[%emt 0:03:27] 7...Nc6 is more advanced technology.} 8. f4 {[%emt 0:06:38] [#]} Nh5 $146 {[%emt 0:07:33] A24: English Opening vs King's Indian: Lines without ...Nc6.} ({Predecessor:} 8... Be6 9. d3 a5 10. h3 exf4 11. Nxf4 {½-½ (11) Serafimov,T (2398)-Gladyszev,O (2451) Belfort 2004}) 9. Qc2 {[%emt 0:06:34]} f5 {[%emt 0:10:13]} 10. b3 {[%emt 0:06:33]} Be6 {[%emt 0:01:55]} 11. Bb2 {[%emt 0:00:54]} Nd7 {[%emt 0:01:19]} 12. Rad1 {[%emt 0:04:34]} Qc7 {[%emt 0:20:37]} 13. d4 {[%emt 0:03:46]} Bf7 {[%emt 0:08:58]} (13... Nhf6 $11) 14. Kh1 {[%emt 0:18:08]} (14. e4 $14) 14... Rfe8 {[%emt 0:11:23]} (14... Ndf6 $11) 15. e4 $16 {[%emt 0:09:09]} fxe4 {[%emt 0:16:29]} (15... exf4 $16 16. Nxf4 (16. exf5 fxg3 17. Nxg3 Nxg3+ 18. hxg3 Nf6 $11) 16... Nxf4 17. Rxf4 (17. gxf4 Nf6 $14) 17... Nf6) 16. Nxe4 {[%emt 0:00:18]} (16. dxe5 $1 $18 dxe5 17. Nxe4) 16... exf4 {[%emt 0:06:37]} 17. Nxf4 {[%emt 0:01:37]} Nxf4 {[%emt 0:03:36]} 18. Rxf4 {[%emt 0:03:00]} ({Don't play} 18. gxf4 Nf6) 18... d5 {[%emt 0:02:45] [#]} 19. Ng5 {[%emt 0:07:41]} (19. Rdf1 $142 $1) 19... Nf6 {[%emt 0:00:01][%cal Og7h6]} 20. Rdf1 {[%emt 0:02:24]} Qe7 {[%emt 0:01:04]} 21. Nxf7 {[%emt 0:01:10] White is more active.} (21. Qf2 $16) 21... Qxf7 $14 {[%emt 0:00:46]} 22. cxd5 {[%emt 0:04:40]} cxd5 {[%emt 0:00:51]} 23. Qf2 {[%emt 0:01:59] aiming for Kg1.} Rac8 $1 {[%emt 0:00:40]} 24. g4 {[%emt 0:03:29] Black must now prevent g5.} g5 {[%emt 0:00:31]} 25. Rf5 {[%emt 0:00:53][%cal Og2d5]} Qg6 {[%emt 0:00:24]} 26. h3 {[%emt 0:06:15][%cal Rf5f6]} Ne4 {[%emt 0:00:35]} 27. Bxe4 {[%emt 0:01:14]} dxe4 {[%emt 0:00:16]} 28. Qe3 {[%emt 0:00:27]} Rc2 {[%emt 0:00:41]} 29. Ba1 {[%emt 0:07:45]} (29. R1f2 $11 Rxf2 30. Rxf2) 29... Qd6 {[%emt 0:00:29]} (29... Qa6 $17 30. a4 h6) 30. R5f2 {[%emt 0:00:09]} (30. R1f2 $11 {remains equal.} Qc7 31. Bb2 (31. Qxg5 $2 e3 $19)) 30... Rxf2 {[%emt 0:00:32]} (30... Qa6 $17 31. Kg1 (31. Qxg5 $2 Rxf2 32. Rxf2 e3 $19) 31... Rxa2) 31. Rxf2 {[%emt 0:00:01]} h6 {[%emt 0:00:21]} 32. Kg2 {[%emt 0:02:45]} Qd5 {[%emt 0:00:31]} 33. Rf5 {[%emt 0:01:04]} Qc6 {[%emt 0:00:38]} 34. d5 {[%emt 0:02:11]} Qa6 {[%emt 0:00:24][%mdl 8192]} (34... Qc2+ $11 35. Rf2 Qd3 36. Qxd3 exd3 37. Bxg7 Kxg7) 35. Bxg7 $18 {[%emt 0:00:09]} Kxg7 {[%emt 0:00:26][%mdl 4096] Endgame [#] KQR-KQR} 36. Qd4+ $1 {[%emt 0:00:32]} Kg8 {[%emt 0:00:34]} 37. Qf6 $2 {[%emt 0:00:35]} (37. Rf6 $18 Qxa2+ 38. Rf2) 37... Qxf6 $11 {[%emt 0:00:28]} 38. Rxf6 {[%emt 0:00:01] Hoping for d6.} Kg7 {[%emt 0:00:34]} 39. Rd6 {[%emt 0:01:28] White wants to play Kf2.} e3 {[%emt 0:00:34] And now ...e2 would win.} 40. Kf1 {[%emt 0:00:16]} e2+ {[%emt 0:00:30]} 41. Ke1 {[%emt 0:30:05]} Re7 {[%emt 0:03:22] Inhibits Rd7.} 42. a4 {[%emt 0:00:00]} (42. b4 $16) 42... Kh7 $2 {[%emt 0:07:34] Weighted Error Value: White=0.45/Black=0.45} (42... b6 $1 $11 {and Black has nothing to worry.}) 1/2-1/2

[Event "Slovakian-ch Youth 2022"]
[Site "Lubovna"]
[Date "2022.05.22"]
[Round "2.16"]
[White "Otahal, Kristian"]
[Black "Krivosik, Matus"]
[Result "0-1"]
[ECO "B12"]
[WhiteElo "1000"]
[BlackElo "1224"]
[Annotator "NA COMBH"]
[PlyCount "58"]
[EventDate "2022.05.22"]
[EventCountry "SVK"]
[SourceTitle "playchess.com"]
[Source "ChessBase"]
[SourceQuality "1"]
[TimeControl "40/5400+30:1800+30"]

1. e4 {[%emt 0:00:01]} c6 {[%emt 0:00:12]} 2. d4 {[%emt 0:00:07]} d5 {[%emt 0:00:04]} 3. e5 {[%emt 0:00:07]} c5 {[%emt 0:00:28]} 4. Nf3 {[%emt 0:00:22]} Bg4 {[%emt 0:00:18]} 5. Be2 {[%emt 0:00:37]} Nc6 {[%emt 0:00:18]} 6. dxc5 {[%emt 0:00:24]} e6 {[%emt 0:00:17]} 7. Be3 {[%emt 0:00:09]} Bxf3 {[%emt 0:00:42]} 8. Bxf3 {[%emt 0:00:25]} Nxe5 {[%emt 0:00:22]} 9. Nd2 {[%emt 0:01:44]} g5 {[%emt 0:02:22]} 10. O-O {[%emt 0:02:15]} d4 {[%emt 0:00:37]} 11. Bxd4 {[%emt 0:03:16]} Qxd4 {[%emt 0:00:33]} 12. Nb3 {[%emt 0:00:20]} Qxd1 {[%emt 0:01:34]} 13. Raxd1 {[%emt 0:00:14]} Nxf3+ {[%emt 0:00:20]} 14. gxf3 {[%emt 0:00:13]} Rc8 {[%emt 0:00:48]} 15. Na5 {[%emt 0:02:47]} Rxc5 {[%emt 0:02:30]} 16. Nxb7 {[%emt 0:00:27]} Rxc2 {[%emt 0:00:56]} 17. Rd8+ {[%emt 0:00:08]} Ke7 {[%emt 0:00:03]} 18. Rfd1 {[%emt 0:00:25]} Rc7 {[%emt 0:00:50]} 19. Rb8 {[%emt 0:01:34]} Bg7 {[%emt 0:01:05]} 20. b3 {[%emt 0:00:55]} Nf6 {[%emt 0:00:49]} 21. Nd8 {[%emt 0:03:59]} Nd5 {[%emt 0:01:51]} 22. Rxd5 {[%emt 0:19:15]} exd5 {[%emt 0:00:21]} 23. Nc6+ Rxc6 {[%emt 0:01:47]} 24. Rb4 {[%emt 0:12:28]} d4 25. Rb7+ {[%emt 0:00:15]} Ke6 {[%emt 0:00:39]} 26. Rxa7 {[%emt 0:01:41]} Rc1+ {[%emt 0:00:20]} 27. Kg2 {[%emt 0:00:07]} Rhc8 {[%emt 0:00:25]} 28. Ra6+ {[%emt 0:01:36]} R8c6 {[%emt 0:00:03]} 29. Rxc6+ {[%emt 0:02:29]} Rxc6 {[%emt 0:00:04]} 0-1

[Event "Slovakian-ch Youth 2022"]
[Site "Lubovna"]
[Date "2022.05.22"]
[Round "2.17"]
[White "Skreko, Igor"]
[Black "Sevcik, Matej"]
[Result "1-0"]
[ECO "D12"]
[WhiteElo "2065"]
[BlackElo "1820"]
[Annotator "TA"]
[PlyCount "69"]
[EventDate "2022.05.22"]
[EventCountry "SVK"]
[SourceTitle "playchess.com"]
[Source "ChessBase"]
[SourceQuality "1"]
[TimeControl "40/5400+30:1800+30"]

{[%evp 12,69,20,27,22,20,28,16,16,16,17,8,27,31,58,43,115,122,133,120,131,107,114,115,201,200,213,202,252,259,256,251,289,53,199,7,345,349,327,320,339,331,417,416,431,419,466,464,493,477,587,601,706,645,841,826,892,843,887,839]} 1. d4 {[%emt 0:00:02]} d5 {[%emt 0:00:05]} 2. c4 {[%emt 0:00:04]} c6 {[%emt 0:00:04]} 3. Nf3 {[%emt 0:00:06]} Nf6 {[%emt 0:00:04]} 4. e3 {[%emt 0:00:07]} Bf5 {[%emt 0:00:04]} 5. Nc3 {[%emt 0:00:06]} e6 {[%emt 0:00:04]} 6. Nh4 {[%emt 0:00:09]} Be4 {[%emt 0:00:04]} 7. f3 {[%emt 0:00:09]} Bg6 {[%emt 0:00:04] D12: Slav Defence: 3 Nf3 Nf6 4 e3 Bf5.} 8. Bd2 {[%emt 0:00:20]} Be7 {[%emt 0:00:55]} 9. Nxg6 {[%emt 0:00:15]} hxg6 {[%emt 0:00:06] The position is equal.} 10. Qc2 {[%emt 0:00:09]} Nbd7 {[%emt 0:03:43]} 11. O-O-O {[%emt 0:00:48]} Qc7 {[%emt 0:02:35]} 12. cxd5 {[%emt 0:01:26]} exd5 {[%emt 0:02:47] [#]} 13. g3 $146 {[%emt 0:01:45][%cal Bg2g3,Bg3g4][%mdl 32]} ({Predecessor:} 13. h3 O-O-O 14. Kb1 Kb8 15. Rc1 Rc8 16. Na4 Ka8 17. Qb3 Qd6 18. Bd3 {1-0 (37) Nasshan,D (2348)-Mohammad,S (2352) Germany 2017}) 13... O-O {[%emt 0:09:51]} (13... Nf8 $14) 14. g4 $16 {[%emt 0:03:28]} Rfc8 {[%emt 0:03:26]} 15. h4 {[%emt 0:02:22][%cal Bh2h4,Bh4h5][%mdl 32]} b5 {[%emt 0:04:51]} 16. h5 {[%emt 0:04:06]} g5 {[%emt 0:03:38] [#]} 17. Kb1 $1 {[%emt 0:03:29]} Nb6 {[%emt 0:05:41] [#]} (17... b4 $16) 18. Bd3 $1 $18 {[%emt 0:02:02]} Bf8 {[%emt 0:02:50]} 19. Bf5 {[%emt 0:02:50]} Nc4 {[%emt 0:03:26]} 20. Bxc8 {[%emt 0:03:36]} Rxc8 {[%emt 0:01:07]} 21. Bc1 {[%emt 0:02:11]} c5 {[%emt 0:03:17]} 22. b3 $2 {[%emt 0:14:21]} (22. Nxb5 Qb6 $11) (22. dxc5 $18 Qe5 23. Qd3 (23. Nxb5 Rb8 $14)) 22... cxd4 {[%emt 0:07:05]} (22... Nd6 $14) 23. bxc4 $2 {[%emt 0:00:54]} (23. Nxb5 $18 Qb8 24. Qf5 (24. bxc4 Rxc4 25. Qb2 Rb4 $11) (24. Nxd4 Na3+ 25. Bxa3 Rxc2 $14) (24. exd4 Qxb5 25. Qd3 Qb4 $15) 24... Nxe3 25. Bxe3 dxe3 26. Nd4) 23... Qxc4 {[%emt 0:08:49][%mdl 8192] [#]} (23... dxc3 $11 {and Black has nothing to worry.} 24. cxd5 Qe5) 24. Rxd4 $1 {[%emt 0:01:10]} Qxc3 {[%emt 0:01:06]} 25. Qxc3 {[%emt 0:00:15]} Rxc3 {[%emt 0:00:07]} 26. Bd2 {[%emt 0:01:22]} Rc6 {[%emt 0:03:45]} 27. Rc1 {[%emt 0:01:56]} Rxc1+ {[%emt 0:11:41]} 28. Bxc1 {[%emt 0:00:45][%mdl 4096] Endgame KRB-KBN} Bd6 {[%emt 0:01:27]} 29. Rd3 {[%emt 0:01:00] White is clearly winning.} Be5 {[%emt 0:01:22]} 30. Ba3 {[%emt 0:00:56]} a5 {[%emt 0:02:06]} 31. Be7 {[%emt 0:00:52]} b4 {[%emt 0:01:01]} 32. Bxf6 {[%emt 0:00:46]} Bxf6 {[%emt 0:00:08]} 33. Rxd5 {[%emt 0:00:16]} a4 {[%emt 0:00:09]} 34. Ra5 {[%emt 0:00:26]} b3 {[%emt 0:00:36]} 35. a3 {[%emt 0:00:55] Weighted Error Value: White=0.29 (precise) /Black=0.65} 1-0

[Event "Slovakian-ch Youth 2022"]
[Site "Lubovna"]
[Date "2022.05.22"]
[Round "2.18"]
[White "Koska, Jiri"]
[Black "Sandor, Samuel"]
[Result "0-1"]
[ECO "C55"]
[WhiteElo "1759"]
[BlackElo "2054"]
[Annotator "TA"]
[PlyCount "118"]
[EventDate "2022.05.22"]
[EventCountry "SVK"]
[SourceTitle "playchess.com"]
[Source "ChessBase"]
[SourceQuality "1"]
[TimeControl "40/5400+30:1800+30"]

{[%evp 11,118,41,33,41,39,39,37,17,31,29,23,25,69,64,96,102,106,104,113,65,68,21,48,46,60,11,14,0,0,0,2,-12,-9,-10,0,0,0,0,0,8,9,0,22,-101,0,0,0,-150,0,-19,-3,-48,-9,-12,-10,-137,-135,-144,-123,-139,-137,-138,-124,-145,-137,-213,-160,-539,-508,-479,-420,-583,-564,-387,-191,-309,-304,-417,-372,-352,-296,-469,-433,-1243,-1091,-1002,-948,-795,-781,-1086,-1192,-1014,-999,-1814,-1782,-29979,-29975,-29979,-29980,-29978,-29979,-29979,-29980,-29977,-29976,-29976,-29977,-12845,-4618]} 1. e4 {[%emt 0:00:03]} e5 {[%emt 0:00:05]} 2. Nf3 {[%emt 0:00:08]} Nc6 {[%emt 0:00:04]} 3. Bc4 {[%emt 0:00:17]} Nf6 {[%emt 0:00:05]} 4. d3 {[%emt 0:00:07]} Be7 {[%emt 0:00:09]} 5. c3 {[%emt 0:00:15][%cal Bc2c3,Bc3b4,Bb4b5][%mdl 32]} O-O {[%emt 0:00:39]} 6. O-O {[%emt 0:00:14]} d6 {[%emt 0:01:34]} 7. a4 {[%emt 0:00:18] 7.Re1 gains popularity. C55: Two Knights: 4 d3, 4 d4 exd4 5 e5 and Max Lange Attack.} Na5 {[%emt 0:00:42]} 8. Ba2 {[%emt 0:00:32]} c5 {[%emt 0:00:04]} 9. b4 {[%emt 0:04:10] White is slightly better.} cxb4 {[%emt 0:07:11]} 10. cxb4 {[%emt 0:00:36]} Nc6 {[%emt 0:00:03]} 11. b5 {[%emt 0:01:02]} Nb8 {[%emt 0:05:32]} 12. Nc3 {[%emt 0:14:47] [#]} h6 $146 {[%emt 0:09:51]} ({Predecessor:} 12... Nbd7 13. Re1 Nc5 14. d4 exd4 15. Nxd4 Ng4 16. f4 Bh4 17. g3 Be7 18. h3 Nf6 {1-0 (34) Segovic,G (2301)-Bender,I (2212) Slovenia 2019}) 13. h3 {[%emt 0:04:45]} Re8 {[%emt 0:04:19]} 14. Be3 {[%emt 0:02:43]} (14. Qb3 Be6 15. Qb1 Bxa2 16. Rxa2 Bf8 $11) 14... Bf8 {[%emt 0:03:40]} 15. Re1 {[%emt 0:10:05]} ({Don't take} 15. Qb3 Be6 16. Qb2 Bxa2 17. Qxa2 (17. Rxa2 d5 $11) 17... Nbd7 $11) (15. d4 $16) 15... Be6 $14 {[%emt 0:08:11]} 16. d4 {[%emt 0:05:44]} (16. Bxe6 $14 {is superior.} Rxe6 17. d4) 16... exd4 {[%emt 0:02:34]} 17. Bxd4 {[%emt 0:01:56]} Nbd7 {[%emt 0:01:09]} 18. Bxf6 {[%emt 0:03:17]} (18. Bxe6 $14 fxe6 19. Rc1) 18... Nxf6 $11 {[%emt 0:08:06]} 19. Nd5 {[%emt 0:01:13]} Rc8 {[%emt 0:01:33]} 20. Qd4 {[%emt 0:18:49]} Rc5 {[%emt 0:09:06]} 21. Rac1 {[%emt 0:10:31]} Nxd5 {[%emt 0:06:30]} ({But not} 21... Nxe4 22. Qxe4 Bxd5 23. Qxe8 $14) 22. Bxd5 {[%emt 0:01:39]} Qc7 {[%emt 0:01:57]} 23. Rxc5 {[%emt 0:03:37]} dxc5 {[%emt 0:00:03]} 24. Qc4 {[%emt 0:01:43]} Qf4 {[%emt 0:02:59]} 25. Bxe6 {[%emt 0:06:36]} Rxe6 {[%emt 0:00:02]} 26. Qc2 {[%emt 0:00:27]} b6 {[%emt 0:02:54]} 27. a5 {[%emt 0:02:48]} (27. e5 $11 {remains equal.}) 27... g6 {[%emt 0:02:13]} (27... bxa5 $17 28. Qc4 Be7) 28. axb6 {[%emt 0:00:51]} axb6 {[%emt 0:00:35]} 29. Qd2 {[%emt 0:02:03]} ({Better is} 29. e5 $11) 29... Qf6 {[%emt 0:02:46]} ({Black should play} 29... Rxe4 $17 {...Qxd2 is the strong threat.} 30. Qxf4 Rxf4) 30. Qc2 {[%emt 0:00:39]} Bg7 {[%emt 0:01:03]} 31. Nd2 {[%emt 0:01:55]} Qh4 {[%emt 0:04:11]} 32. Nf3 {[%emt 0:00:53]} Qf4 {[%emt 0:00:43]} 33. Qd2 {[%emt 0:00:31] Black keeps a firm grip on the game.} (33. Re3 $11) 33... Qxd2 $17 {[%emt 0:01:43]} ({Not} 33... Rxe4 34. Qd8+ Kh7 35. Rxe4 Qxe4 36. Qxb6 $15) 34. Nxd2 {[%emt 0:00:04][%mdl 4096] Endgame KRB-KRN} Bc3 {[%emt 0:00:08]} 35. Re2 {[%emt 0:00:23]} Bxd2 {[%emt 0:00:13]} 36. Rxd2 {[%emt 0:00:01]} Rxe4 {[%emt 0:00:09] Strongly threatening ...Rb4. KR-KR} 37. Rd6 {[%emt 0:00:46] [#]} Re6 $1 {[%emt 0:00:20]} 38. Rc6 {[%emt 0:02:13]} (38. Rd8+ $17 Kg7 39. Kf1) 38... Kg7 {[%emt 0:01:37]} 39. Kh2 $2 {[%emt 0:00:44] [#]} (39. Kf1 $17) 39... Kf6 $1 $19 {[%emt 0:00:20] And now ...Rxc6 would win.} 40. Rc7 {[%emt 0:00:13]} Rd6 {[%emt 0:01:29]} 41. f3 {[%emt 0:30:16]} Ke6 {[%emt 0:31:02]} 42. Kg3 {[%emt 0:00:24]} f5 {[%emt 0:00:57]} (42... Kd5 $142 43. Rxf7 Kc4) 43. Rh7 {[%emt 0:01:01]} (43. f4 $142) 43... h5 {[%emt 0:00:41]} 44. Rg7 {[%emt 0:00:31]} Kd5 {[%emt 0:00:11]} 45. Rc7 {[%emt 0:00:28]} Ke5 {[%emt 0:05:42] White must now prevent ...f4+.} 46. Rc8 {[%emt 0:00:00]} (46. h4 $142) 46... f4+ {[%emt 0:00:00]} 47. Kh2 {[%emt 0:00:00]} (47. Kf2 $142 Rd2+ 48. Kf1) 47... Kd4 {[%emt 0:00:00]} 48. Rc6 {[%emt 0:00:00]} Kd5 {[%emt 0:00:00]} 49. Rc7 {[%emt 0:00:00]} g5 {[%emt 0:00:00]} 50. Rc8 {[%emt 0:00:00]} Kd4 {[%emt 0:00:00] Hoping for ...c4.} 51. Rc6 {[%emt 0:00:00]} Rd5 {[%emt 0:00:00]} 52. Rxb6 {[%emt 0:00:00]} c4 {[%emt 0:00:00] ( -> ...c3)} 53. Kg1 {[%emt 0:00:00]} Kd3 {[%emt 0:00:00]} 54. Kf1 {[%emt 0:00:00]} c3 {[%emt 0:00:00]} 55. Rc6 {[%emt 0:00:00]} Rxb5 {[%emt 0:00:00]} 56. Rd6+ {[%emt 0:00:00]} Kc2 {[%emt 0:00:00]} 57. Ke2 {[%emt 0:00:00]} Re5+ {[%emt 0:00:00]} 58. Kf2 {[%emt 0:00:00]} Kc1 {[%emt 0:00:00]} 59. Rc6 {[%emt 0:00:00]} c2 {[%emt 0:00:00] Weighted Error Value: White=0.73/Black=0.16 (very precise)} (59... Re3 $142 60. h4 gxh4) 0-1